[Event "*** Titled Tuesday Blitz"]
[Site "Chess.com"]
[Date "2020.04.28"]
[Round "6"]
[White "Oglob71"]
[Black "tacticthunder"]
[Result "0-1"]
[WhiteElo "2485"]
[BlackElo "2665"]
[TimeControl "180+1"]
[EndTime "11:07:13 PDT"]
[Termination "tacticthunder won by resignation"]

1. d4 {[%clk 0:03:00.9]} 1... Nf6 {[%clk 0:02:59.3]} 2. Nf3 {[%clk 0:02:58.8]}
2... e6 {[%clk 0:02:59.2]} 3. c4 {[%clk 0:02:58.8]} 3... Bb4+ {[%clk 0:02:57.7]}
4. Nbd2 {[%clk 0:02:58.1]} 4... O-O {[%clk 0:02:57.3]} 5. g3 {[%clk 0:02:57.8]}
5... b6 {[%clk 0:02:55.9]} 6. Bg2 {[%clk 0:02:58.3]} 6... Bb7 {[%clk 0:02:56.3]}
7. O-O {[%clk 0:02:58.8]} 7... Bxd2 {[%clk 0:02:56.1]} 8. Bxd2 {[%clk
0:02:58.4]} 8... a5 {[%clk 0:02:54.2]} 9. Bg5 {[%clk 0:02:57.5]} 9... h6 {[%clk
0:02:53.9]} 10. Bxf6 {[%clk 0:02:56.6]} 10... Qxf6 {[%clk 0:02:54.8]} 11. Qd2
{[%clk 0:02:56.5]} 11... d6 {[%clk 0:02:54.7]} 12. Rfd1 {[%clk 0:02:56.5]} 12...
Nd7 {[%clk 0:02:53.5]} 13. Rac1 {[%clk 0:02:56.2]} 13... Rfe8 {[%clk 0:02:50]}
14. Qd3 {[%clk 0:02:56.4]} 14... Rab8 {[%clk 0:02:43.4]} 15. e4 {[%clk
0:02:55.1]} 15... e5 {[%clk 0:02:33.2]} 16. d5 {[%clk 0:02:54.9]} 16... Nc5
{[%clk 0:02:31]} 17. Qe3 {[%clk 0:02:55.4]} 17... Bc8 {[%clk 0:02:26.5]} 18. h3
{[%clk 0:02:53.5]} 18... Rf8 {[%clk 0:02:18.3]} 19. b3 {[%clk 0:02:52.5]} 19...
Qg6 {[%clk 0:02:16.3]} 20. Nh4 {[%clk 0:02:52.5]} 20... Qg5 {[%clk 0:02:16.2]}
21. Re1 {[%clk 0:02:47.6]} 21... f5 {[%clk 0:02:08.5]} 22. Qxg5 {[%clk
0:02:38.8]} 22... hxg5 {[%clk 0:02:07.3]} 23. Nxf5 {[%clk 0:02:39.3]} 23... Nd3
{[%clk 0:01:41.2]} 24. g4 {[%clk 0:02:30.1]} 24... g6 {[%clk 0:01:32.6]} 25.
Ne7+ {[%clk 0:02:29.8]} 25... Kf7 {[%clk 0:01:32.2]} 26. Nc6 {[%clk 0:02:09.5]}
26... Ra8 {[%clk 0:01:09.3]} 27. Red1 {[%clk 0:02:09.4]} 27... Nxc1 {[%clk
0:01:09.1]} 28. Rxc1 {[%clk 0:02:10]} 28... Bd7 {[%clk 0:01:08.7]} 29. a3 {[%clk
0:02:05.6]} 29... Bxc6 {[%clk 0:01:03.9]} 30. dxc6 {[%clk 0:02:05.4]} 30... Ke7
{[%clk 0:01:02.1]} 31. f3 {[%clk 0:02:00.8]} 31... a4 {[%clk 0:00:44.1]} 32. b4
{[%clk 0:02:00.4]} 32... b5 {[%clk 0:00:44.4]} 33. c5 {[%clk 0:01:58.1]} 33...
Rfd8 {[%clk 0:00:31.7]} 34. Bf1 {[%clk 0:01:55.2]} 34... Rab8 {[%clk 0:00:20.2]}
35. cxd6+ {[%clk 0:01:55.3]} 35... Rxd6 {[%clk 0:00:19.2]} 36. Rc5 {[%clk
0:01:54.9]} 36... Kf6 {[%clk 0:00:19]} 37. Bxb5 {[%clk 0:01:53.3]} 37... Rd2
{[%clk 0:00:19.2]} 38. Bc4 {[%clk 0:01:51.7]} 38... Rc2 {[%clk 0:00:15]} 39. Kf1
{[%clk 0:01:39.9]} 39... Rd8 {[%clk 0:00:14.8]} 40. Bd5 {[%clk 0:01:40.3]} 40...
Rxc5 {[%clk 0:00:14.1]} 41. bxc5 {[%clk 0:01:40.9]} 41... Rb8 {[%clk 0:00:14.7]}
42. Ke2 {[%clk 0:01:40.1]} 42... Rb1 {[%clk 0:00:15]} 43. Kd3 {[%clk 0:01:40.7]}
43... Ra1 {[%clk 0:00:15.4]} 44. Kc3 {[%clk 0:01:40.4]} 44... Rxa3+ {[%clk
0:00:16.3]} 45. Kb4 {[%clk 0:01:39.4]} 45... Ra1 {[%clk 0:00:16.6]} 46. Kb5
{[%clk 0:01:27.1]} 46... a3 {[%clk 0:00:16.6]} 47. Ka6 {[%clk 0:01:26.7]} 47...
Ke7 {[%clk 0:00:15]} 48. Ka5 {[%clk 0:01:18.3]} 48... Rf1 {[%clk 0:00:11.7]} 49.
Kb4 {[%clk 0:01:17]} 49... Rxf3 {[%clk 0:00:12]} 50. Bb3 {[%clk 0:01:12.3]}
50... Rxh3 {[%clk 0:00:11.7]} 51. Kxa3 {[%clk 0:01:12.7]} 51... Re3 {[%clk
0:00:12.2]} 52. Kb4 {[%clk 0:01:11.8]} 52... Rxe4+ {[%clk 0:00:13.1]} 53. Kc3
{[%clk 0:01:12.2]} 53... Rxg4 {[%clk 0:00:14]} 54. Bc2 {[%clk 0:01:12.3]} 54...
Rg3+ {[%clk 0:00:13.9]} 55. Kc4 {[%clk 0:01:12.5]} 55... Kf6 {[%clk 0:00:13]}
56. Kb5 {[%clk 0:01:11.3]} 56... Rc3 {[%clk 0:00:12.9]} 57. Be4 {[%clk
0:01:11.1]} 57... g4 {[%clk 0:00:13.3]} 58. Kb4 {[%clk 0:01:09.4]} 58... Rc1
{[%clk 0:00:12.7]} 59. Bd5 {[%clk 0:01:08.3]} 59... g3 {[%clk 0:00:13.6]} 60.
Kb5 {[%clk 0:01:06.7]} 60... Kf5 {[%clk 0:00:13.4]} 0-1

[Event "*** Titled Tuesday Blitz"]
[Site "Chess.com"]
[Date "2020.04.28"]
[Round "6"]
[White "GMaka"]
[Black "lupta_robin"]
[Result "0-1"]
[WhiteElo "2343"]
[BlackElo "2552"]
[TimeControl "180+1"]
[EndTime "11:07:14 PDT"]
[Termination "lupta_robin won by resignation"]

1. d4 {[%clk 0:03:00.9]} 1... Nf6 {[%clk 0:02:57.2]} 2. Bf4 {[%clk 0:02:58.9]}
2... g6 {[%clk 0:02:56.6]} 3. Nc3 {[%clk 0:02:56.2]} 3... d5 {[%clk 0:02:53.1]}
4. e3 {[%clk 0:02:56.2]} 4... Bg7 {[%clk 0:02:47.9]} 5. h4 {[%clk 0:02:55.4]}
5... c6 {[%clk 0:02:45.2]} 6. Be2 {[%clk 0:02:32.6]} 6... h5 {[%clk 0:02:42.6]}
7. Nf3 {[%clk 0:02:29.1]} 7... Bg4 {[%clk 0:02:37.8]} 8. Ng5 {[%clk 0:02:26.3]}
8... Bxe2 {[%clk 0:02:30.7]} 9. Nxe2 {[%clk 0:02:27.2]} 9... Qb6 {[%clk
0:02:26.2]} 10. b3 {[%clk 0:02:04.2]} 10... c5 {[%clk 0:02:23]} 11. c3 {[%clk
0:02:03.2]} 11... Nc6 {[%clk 0:02:20.3]} 12. O-O {[%clk 0:01:59.2]} 12... O-O
{[%clk 0:02:13.6]} 13. f3 {[%clk 0:01:57.9]} 13... Rfd8 {[%clk 0:02:08.9]} 14.
Qd2 {[%clk 0:01:56.3]} 14... Rac8 {[%clk 0:02:07.7]} 15. Rfc1 {[%clk 0:01:51.4]}
15... Nd7 {[%clk 0:01:55.5]} 16. Bg3 {[%clk 0:01:25.4]} 16... e5 {[%clk
0:01:53.3]} 17. Bf2 {[%clk 0:01:25.8]} 17... Qa6 {[%clk 0:01:26.9]} 18. a4
{[%clk 0:01:13.7]} 18... b6 {[%clk 0:01:17.6]} 19. Rcb1 {[%clk 0:01:05.5]} 19...
Na5 {[%clk 0:01:10.2]} 20. Qe1 {[%clk 0:00:40.4]} 20... Re8 {[%clk 0:00:52]} 21.
dxc5 {[%clk 0:00:35.1]} 21... Nxc5 {[%clk 0:00:39.9]} 22. b4 {[%clk 0:00:32]}
22... Nd3 {[%clk 0:00:39.7]} 23. Qd2 {[%clk 0:00:26]} 23... Nxf2 {[%clk
0:00:39.5]} 24. bxa5 {[%clk 0:00:26.4]} 24... Nd3 {[%clk 0:00:39.5]} 25. Rb5
{[%clk 0:00:22.5]} 25... e4 {[%clk 0:00:25]} 26. Rxd5 {[%clk 0:00:19.9]} 26...
Nc5 {[%clk 0:00:24.1]} 27. fxe4 {[%clk 0:00:17.2]} 27... Nb3 {[%clk 0:00:22.6]}
28. Qd1 {[%clk 0:00:15.9]} 28... Nxa1 {[%clk 0:00:22.4]} 29. Nd4 {[%clk
0:00:11]} 29... Qc4 {[%clk 0:00:17.1]} 30. Qxa1 {[%clk 0:00:10.3]} 30... Qxc3
{[%clk 0:00:16.4]} 31. Qxc3 {[%clk 0:00:11.2]} 31... Rxc3 {[%clk 0:00:16.7]} 32.
axb6 {[%clk 0:00:12.1]} 32... axb6 {[%clk 0:00:16.5]} 33. Kf2 {[%clk 0:00:11.4]}
33... Rc4 {[%clk 0:00:14.9]} 34. Rd7 {[%clk 0:00:10.9]} 34... Rf8 {[%clk
0:00:12.1]} 35. Rb7 {[%clk 0:00:09.9]} 35... Rxa4 {[%clk 0:00:11.7]} 36. Rxb6
{[%clk 0:00:09.8]} 36... Rxd4 {[%clk 0:00:12.2]} 0-1

[Event "*** Titled Tuesday Blitz"]
[Site "Chess.com"]
[Date "2020.04.28"]
[Round "6"]
[White "BillieKimbah"]
[Black "Leonid_Starozhilov"]
[Result "1-0"]
[WhiteElo "2845"]
[BlackElo "2605"]
[TimeControl "180+1"]
[EndTime "11:07:16 PDT"]
[Termination "BillieKimbah won by resignation"]

1. d4 {[%clk 0:03:00.9]} 1... Nf6 {[%clk 0:02:59.8]} 2. c4 {[%clk 0:03:00.7]}
2... g6 {[%clk 0:02:59.6]} 3. Nc3 {[%clk 0:02:59.2]} 3... Bg7 {[%clk 0:03:00.1]}
4. e4 {[%clk 0:02:59.2]} 4... d6 {[%clk 0:03:00.7]} 5. Be2 {[%clk 0:02:59.2]}
5... O-O {[%clk 0:03:00.4]} 6. h4 {[%clk 0:02:59.7]} 6... h5 {[%clk 0:03:00.4]}
7. Nf3 {[%clk 0:02:58.9]} 7... Bg4 {[%clk 0:02:58.6]} 8. Be3 {[%clk 0:02:57.1]}
8... Nc6 {[%clk 0:02:57.9]} 9. d5 {[%clk 0:02:56.6]} 9... Bxf3 {[%clk
0:02:57.9]} 10. gxf3 {[%clk 0:02:45.6]} 10... Ne5 {[%clk 0:02:50.7]} 11. f4
{[%clk 0:02:44.7]} 11... Neg4 {[%clk 0:02:44.8]} 12. Bc1 {[%clk 0:02:41.4]}
12... c6 {[%clk 0:02:36.3]} 13. f3 {[%clk 0:02:40.3]} 13... Nh6 {[%clk
0:02:36.9]} 14. Be3 {[%clk 0:02:37.1]} 14... cxd5 {[%clk 0:02:35.9]} 15. cxd5
{[%clk 0:02:36.7]} 15... Rc8 {[%clk 0:02:20.6]} 16. Qd2 {[%clk 0:02:35.7]} 16...
Kh7 {[%clk 0:02:16.9]} 17. Rg1 {[%clk 0:02:26.8]} 17... Qa5 {[%clk 0:02:12.3]}
18. f5 {[%clk 0:02:23.6]} 18... Nd7 {[%clk 0:02:04.4]} 19. Rc1 {[%clk
0:02:14.8]} 19... Rg8 {[%clk 0:02:02.2]} 20. fxg6+ {[%clk 0:01:54.8]} 20... fxg6
{[%clk 0:02:02.2]} 21. f4 {[%clk 0:01:50.4]} 21... Bf6 {[%clk 0:01:51.1]} 22.
Kd1 {[%clk 0:01:43.5]} 22... Bxc3 {[%clk 0:01:36.3]} 23. bxc3 {[%clk 0:01:34.2]}
23... Nf6 {[%clk 0:01:17.7]} 24. Bd3 {[%clk 0:01:32.6]} 24... Nhg4 {[%clk
0:01:09.5]} 25. Bd4 {[%clk 0:01:32.7]} 25... Rcf8 {[%clk 0:00:51.9]} 26. Re1
{[%clk 0:01:31.7]} 26... a6 {[%clk 0:00:47.9]} 27. Rc2 {[%clk 0:01:31.2]} 27...
Rc8 {[%clk 0:00:41.9]} 28. Kc1 {[%clk 0:01:29.2]} 28... b5 {[%clk 0:00:40.2]}
29. Kb1 {[%clk 0:01:28.3]} 29... Rc7 {[%clk 0:00:30.1]} 30. f5 {[%clk 0:01:09]}
30... Ne5 {[%clk 0:00:26.7]} 31. Bxe5 {[%clk 0:01:03.1]} 31... dxe5 {[%clk
0:00:26.9]} 32. Rg1 {[%clk 0:01:01.7]} 32... b4 {[%clk 0:00:14.7]} 33. Rxg6
{[%clk 0:00:53.2]} 33... Rxg6 {[%clk 0:00:14.3]} 34. fxg6+ {[%clk 0:00:54.1]}
34... Kg7 {[%clk 0:00:14.4]} 35. cxb4 {[%clk 0:00:53.5]} 35... Qb6 {[%clk
0:00:14.8]} 36. Rxc7 {[%clk 0:00:52.5]} 36... Qxc7 {[%clk 0:00:15.2]} 37. Qc2
{[%clk 0:00:49.4]} 37... Qb6 {[%clk 0:00:13.7]} 38. Qc5 {[%clk 0:00:49]} 38...
Qb7 {[%clk 0:00:10.9]} 39. a4 {[%clk 0:00:46.6]} 39... Kxg6 {[%clk 0:00:09.9]}
40. Kc2 {[%clk 0:00:45.7]} 40... Kg7 {[%clk 0:00:07.9]} 41. a5 {[%clk
0:00:45.2]} 41... Qd7 {[%clk 0:00:06.9]} 42. Kc3 {[%clk 0:00:44.1]} 42... Qa4
{[%clk 0:00:06.3]} 43. Qxe7+ {[%clk 0:00:43.8]} 43... Kg6 {[%clk 0:00:06.2]} 44.
Qe6 {[%clk 0:00:40.6]} 44... Qa3+ {[%clk 0:00:05.7]} 45. Kc4 {[%clk 0:00:40.2]}
45... Qc1+ {[%clk 0:00:04.1]} 46. Kb3 {[%clk 0:00:40.3]} 46... Qd1+ {[%clk
0:00:03.3]} 47. Bc2 {[%clk 0:00:40.5]} 47... Qf3+ {[%clk 0:00:03.1]} 48. Kb2
{[%clk 0:00:40.9]} 48... Qf4 {[%clk 0:00:02.8]} 49. Qf5+ {[%clk 0:00:40.9]}
49... Qxf5 {[%clk 0:00:03.3]} 50. exf5+ {[%clk 0:00:41.8]} 50... Kf7 {[%clk
0:00:04]} 51. b5 {[%clk 0:00:42.3]} 51... axb5 {[%clk 0:00:03.9]} 52. a6 {[%clk
0:00:42.6]} 52... Ne8 {[%clk 0:00:04.2]} 53. d6 {[%clk 0:00:41.4]} 1-0

[Event "*** Titled Tuesday Blitz"]
[Site "Chess.com"]
[Date "2020.04.28"]
[Round "6"]
[White "tomsishere"]
[Black "Baby_Legs"]
[Result "0-1"]
[WhiteElo "2432"]
[BlackElo "2695"]
[TimeControl "180+1"]
[EndTime "11:07:16 PDT"]
[Termination "Baby_Legs won by resignation"]

1. d4 {[%clk 0:03:00.9]} 1... Nf6 {[%clk 0:02:59.3]} 2. c4 {[%clk 0:03:00.5]}
2... e6 {[%clk 0:02:59.5]} 3. Nc3 {[%clk 0:03:00.1]} 3... Bb4 {[%clk 0:02:58.4]}
4. Qc2 {[%clk 0:03:00.3]} 4... d6 {[%clk 0:02:55.7]} 5. Nf3 {[%clk 0:02:59.5]}
5... O-O {[%clk 0:02:52.1]} 6. g3 {[%clk 0:02:58.8]} 6... Nbd7 {[%clk
0:02:49.5]} 7. Bg2 {[%clk 0:02:58.8]} 7... e5 {[%clk 0:02:49]} 8. dxe5 {[%clk
0:02:48.3]} 8... dxe5 {[%clk 0:02:47.7]} 9. O-O {[%clk 0:02:48.4]} 9... c6
{[%clk 0:02:46]} 10. b3 {[%clk 0:02:28.1]} 10... Re8 {[%clk 0:02:43.6]} 11. Bb2
{[%clk 0:02:20.6]} 11... Qc7 {[%clk 0:02:43.4]} 12. Rad1 {[%clk 0:02:04.2]}
12... Bf8 {[%clk 0:02:37.1]} 13. a3 {[%clk 0:01:15.4]} 13... a5 {[%clk
0:02:36.5]} 14. Na4 {[%clk 0:00:58.1]} 14... Nc5 {[%clk 0:02:21]} 15. Nxc5
{[%clk 0:00:55]} 15... Bxc5 {[%clk 0:02:21.9]} 16. Ng5 {[%clk 0:00:53.3]} 16...
g6 {[%clk 0:02:03.8]} 17. e3 {[%clk 0:00:49.4]} 17... Bf5 {[%clk 0:01:58.6]} 18.
e4 {[%clk 0:00:45.2]} 18... Bg4 {[%clk 0:01:54.2]} 19. Rde1 {[%clk 0:00:41.4]}
19... Rad8 {[%clk 0:01:52.3]} 20. Kh1 {[%clk 0:00:37.5]} 20... Bd4 {[%clk
0:01:46]} 21. Bc1 {[%clk 0:00:32.8]} 21... Bc8 {[%clk 0:01:40.5]} 22. f4 {[%clk
0:00:31.1]} 22... exf4 {[%clk 0:01:24.2]} 23. gxf4 {[%clk 0:00:30.4]} 23... Nh5
{[%clk 0:01:14.9]} 24. e5 {[%clk 0:00:26.1]} 24... Bf5 {[%clk 0:01:11.3]} 25.
Be4 {[%clk 0:00:23.2]} 25... Bxe4+ {[%clk 0:01:07.1]} 26. Qxe4 {[%clk
0:00:20.2]} 26... f5 {[%clk 0:01:03]} 27. Qg2 {[%clk 0:00:18.8]} 27... Bc5
{[%clk 0:00:59]} 28. e6 {[%clk 0:00:15.7]} 28... Rd3 {[%clk 0:00:57.6]} 29. Nf3
{[%clk 0:00:11.2]} 29... Rxb3 {[%clk 0:00:41.1]} 30. Qc2 {[%clk 0:00:10.7]}
30... a4 {[%clk 0:00:38.2]} 31. Bb2 {[%clk 0:00:06.3]} 31... Bxa3 {[%clk
0:00:31.4]} 32. Bxa3 {[%clk 0:00:05.9]} 32... Rxa3 {[%clk 0:00:32.3]} 33. Qb2
{[%clk 0:00:05.1]} 33... Rb3 {[%clk 0:00:30.8]} 34. Qd4 {[%clk 0:00:05.1]} 34...
c5 {[%clk 0:00:26.1]} 35. Qd5 {[%clk 0:00:04.9]} 35... Nxf4 {[%clk 0:00:24.6]}
36. Qd2 {[%clk 0:00:02.6]} 36... Nxe6 {[%clk 0:00:20.5]} 37. Qd5 {[%clk
0:00:02.1]} 37... Qc6 {[%clk 0:00:20.4]} 38. Qxc6 {[%clk 0:00:01.5]} 38... bxc6
{[%clk 0:00:21.3]} 39. Ng5 {[%clk 0:00:01.9]} 39... Nc7 {[%clk 0:00:20.4]} 40.
Rxe8+ {[%clk 0:00:01.9]} 40... Nxe8 {[%clk 0:00:21.3]} 41. Ne6 {[%clk
0:00:02.5]} 41... a3 {[%clk 0:00:20.7]} 42. Nxc5 {[%clk 0:00:03.4]} 42... Rc3
{[%clk 0:00:21.2]} 43. Ra1 {[%clk 0:00:03.5]} 43... Rxc4 {[%clk 0:00:20.9]} 44.
Na4 {[%clk 0:00:03.8]} 44... Rxa4 {[%clk 0:00:20.9]} 0-1

[Event "*** Titled Tuesday Blitz"]
[Site "Chess.com"]
[Date "2020.04.28"]
[Round "6"]
[White "Piotrek1979"]
[Black "JiaHaoxiang"]
[Result "0-1"]
[WhiteElo "2405"]
[BlackElo "2581"]
[TimeControl "180+1"]
[EndTime "11:07:19 PDT"]
[Termination "JiaHaoxiang won by checkmate"]

1. e4 {[%clk 0:03:00.9]} 1... c5 {[%clk 0:03:00]} 2. Nf3 {[%clk 0:03:00.6]} 2...
e6 {[%clk 0:03:00.5]} 3. d3 {[%clk 0:03:00]} 3... Nc6 {[%clk 0:02:54.9]} 4. g3
{[%clk 0:02:59.9]} 4... d5 {[%clk 0:02:55]} 5. Qe2 {[%clk 0:02:59.4]} 5... Nf6
{[%clk 0:02:54.6]} 6. Bg2 {[%clk 0:02:58.1]} 6... Be7 {[%clk 0:02:54.9]} 7. O-O
{[%clk 0:02:55.1]} 7... O-O {[%clk 0:02:55]} 8. e5 {[%clk 0:02:50.5]} 8... Nd7
{[%clk 0:02:54.8]} 9. h4 {[%clk 0:02:50.4]} 9... b5 {[%clk 0:02:52.1]} 10. Bf4
{[%clk 0:02:49.6]} 10... a5 {[%clk 0:02:49.5]} 11. a4 {[%clk 0:02:47.8]} 11...
bxa4 {[%clk 0:02:46]} 12. Nc3 {[%clk 0:02:47]} 12... a3 {[%clk 0:02:38.3]} 13.
bxa3 {[%clk 0:02:42.8]} 13... Rb8 {[%clk 0:02:37.7]} 14. Rab1 {[%clk 0:02:34.9]}
14... Ba6 {[%clk 0:02:36.4]} 15. Rxb8 {[%clk 0:02:28.3]} 15... Qxb8 {[%clk
0:02:36.5]} 16. Nxd5 {[%clk 0:02:25]} 16... exd5 {[%clk 0:02:27.4]} 17. e6
{[%clk 0:02:25.3]} 17... Qd8 {[%clk 0:02:20.3]} 18. exd7 {[%clk 0:02:24.8]}
18... Qxd7 {[%clk 0:02:21.2]} 19. Ne5 {[%clk 0:02:22]} 19... Nd4 {[%clk
0:02:08.6]} 20. Nxd7 {[%clk 0:02:16]} 20... Nxe2+ {[%clk 0:02:08.2]} 21. Kh2
{[%clk 0:02:15.8]} 21... Rd8 {[%clk 0:02:04.6]} 22. Ne5 {[%clk 0:02:03]} 22...
Nxf4 {[%clk 0:02:02.7]} 23. gxf4 {[%clk 0:01:31.5]} 23... Bxh4 {[%clk
0:01:56.9]} 24. Rb1 {[%clk 0:01:26.5]} 24... Bc8 {[%clk 0:01:51]} 25. Nc6 {[%clk
0:01:21.9]} 25... Rd6 {[%clk 0:01:45]} 26. Rb8 {[%clk 0:01:10.1]} 26... Rxc6
{[%clk 0:01:42.8]} 27. Bxd5 {[%clk 0:01:10]} 27... Rc7 {[%clk 0:00:59.8]} 28.
Bb7 {[%clk 0:01:09.9]} 28... Bxf2 {[%clk 0:00:52.9]} 29. f5 {[%clk 0:00:55.3]}
29... g6 {[%clk 0:00:50.6]} 30. f6 {[%clk 0:00:54.2]} 30... Bd4 {[%clk
0:00:46.9]} 31. Bxc8 {[%clk 0:00:49.2]} 31... Bxf6 {[%clk 0:00:43.9]} 32. Ba6+
{[%clk 0:00:48.7]} 32... Kg7 {[%clk 0:00:44]} 33. Bc4 {[%clk 0:00:49.3]} 33...
Re7 {[%clk 0:00:42.9]} 34. Kg2 {[%clk 0:00:42]} 34... h5 {[%clk 0:00:40.1]} 35.
Kf3 {[%clk 0:00:39.4]} 35... Bd4 {[%clk 0:00:39.1]} 36. Ra8 {[%clk 0:00:32.9]}
36... g5 {[%clk 0:00:39.1]} 37. Rxa5 {[%clk 0:00:31.8]} 37... Re3+ {[%clk
0:00:38.8]} 38. Kg2 {[%clk 0:00:30.7]} 38... Re2+ {[%clk 0:00:39.2]} 39. Kf1
{[%clk 0:00:26.6]} 39... Rf2+ {[%clk 0:00:37.8]} 40. Ke1 {[%clk 0:00:26.9]}
40... Rxc2 {[%clk 0:00:37.7]} 41. Ra7 {[%clk 0:00:25.1]} 41... Rf2 {[%clk
0:00:32.6]} 42. Rd7 {[%clk 0:00:24.9]} 42... Rf6 {[%clk 0:00:31.8]} 43. a4
{[%clk 0:00:23.6]} 43... h4 {[%clk 0:00:30.9]} 44. Ke2 {[%clk 0:00:17.7]} 44...
g4 {[%clk 0:00:26.1]} 45. a5 {[%clk 0:00:16.7]} 45... g3 {[%clk 0:00:23.5]} 46.
Bd5 {[%clk 0:00:15.9]} 46... h3 {[%clk 0:00:22.1]} 47. a6 {[%clk 0:00:14.8]}
47... g2 {[%clk 0:00:19.4]} 48. a7 {[%clk 0:00:10.8]} 48... Rf2+ {[%clk
0:00:19.3]} 49. Kd1 {[%clk 0:00:09.8]} 49... g1=Q# {[%clk 0:00:19.4]} 0-1

[Event "*** Titled Tuesday Blitz"]
[Site "Chess.com"]
[Date "2020.04.28"]
[Round "6"]
[White "Vaathi_Coming"]
[Black "Koksik_13"]
[Result "0-1"]
[WhiteElo "2853"]
[BlackElo "2720"]
[TimeControl "180+1"]
[EndTime "11:07:20 PDT"]
[Termination "Koksik_13 won on time"]

1. d4 {[%clk 0:03:00.9]} 1... e6 {[%clk 0:02:59.8]} 2. e4 {[%clk 0:03:00.7]}
2... d5 {[%clk 0:02:59.7]} 3. e5 {[%clk 0:03:00.1]} 3... c5 {[%clk 0:02:59.3]}
4. c3 {[%clk 0:03:01]} 4... Qb6 {[%clk 0:02:59.4]} 5. Nf3 {[%clk 0:03:01.3]}
5... Nh6 {[%clk 0:02:59.9]} 6. Bd3 {[%clk 0:02:54.4]} 6... Nc6 {[%clk
0:02:50.5]} 7. O-O {[%clk 0:02:53.2]} 7... cxd4 {[%clk 0:02:48]} 8. cxd4 {[%clk
0:02:49.5]} 8... Nf5 {[%clk 0:02:47.9]} 9. Bxf5 {[%clk 0:02:33.1]} 9... exf5
{[%clk 0:02:48.8]} 10. Nc3 {[%clk 0:02:33.7]} 10... Be6 {[%clk 0:02:49.1]} 11.
a3 {[%clk 0:02:30.7]} 11... Be7 {[%clk 0:02:46.8]} 12. b4 {[%clk 0:02:30.4]}
12... h6 {[%clk 0:02:46.4]} 13. h4 {[%clk 0:02:25.9]} 13... g5 {[%clk
0:02:43.5]} 14. b5 {[%clk 0:02:17.5]} 14... Na5 {[%clk 0:02:38.4]} 15. hxg5
{[%clk 0:02:17.1]} 15... hxg5 {[%clk 0:02:38.5]} 16. Bxg5 {[%clk 0:02:18]} 16...
Bxg5 {[%clk 0:02:17.8]} 17. Nxg5 {[%clk 0:02:18.9]} 17... Nc4 {[%clk 0:02:14.9]}
18. Qd3 {[%clk 0:02:06.5]} 18... O-O-O {[%clk 0:02:10.6]} 19. f4 {[%clk
0:02:04.7]} 19... Rdg8 {[%clk 0:02:06.7]} 20. Rf2 {[%clk 0:01:31.8]} 20... Rh4
{[%clk 0:02:03]} 21. g3 {[%clk 0:01:24.5]} 21... Rh5 {[%clk 0:01:53.9]} 22. Kg2
{[%clk 0:01:03.8]} 22... Rgh8 {[%clk 0:01:53.5]} 23. Kf3 {[%clk 0:01:04.2]}
23... Kb8 {[%clk 0:01:52]} 24. a4 {[%clk 0:00:59.7]} 24... Qa5 {[%clk
0:01:51.1]} 25. Rb1 {[%clk 0:00:57.8]} 25... Rh1 {[%clk 0:01:39.5]} 26. Rxh1
{[%clk 0:00:47.5]} 26... Rxh1 {[%clk 0:01:40.4]} 27. Kg2 {[%clk 0:00:05.7]}
27... Rc1 {[%clk 0:01:37.2]} 28. Rf3 {[%clk 0:00:06]} 28... Qc7 {[%clk
0:00:38.4]} 29. Nd1 {[%clk 0:00:04.5]} 29... Qa5 {[%clk 0:00:31.7]} 30. Ne3
{[%clk 0:00:04]} 30... Qe1 {[%clk 0:00:25.4]} 31. Nf1 {[%clk 0:00:04]} 31... Qb4
{[%clk 0:00:13.6]} 32. Rf2 {[%clk 0:00:03.7]} 32... Qxa4 {[%clk 0:00:13.3]} 33.
Qf3 {[%clk 0:00:02.7]} 33... Qxb5 {[%clk 0:00:11.7]} 34. Qh5 {[%clk 0:00:02.9]}
34... a5 {[%clk 0:00:11.2]} 35. Qh8+ {[%clk 0:00:02.5]} 35... Ka7 {[%clk
0:00:10.9]} 36. Qf8 {[%clk 0:00:02.3]} 36... Rxf1 {[%clk 0:00:07.8]} 37. Kxf1
{[%clk 0:00:01.7]} 37... Ne3+ {[%clk 0:00:07.9]} 0-1